fUSD/lending_fUSD_20260616
["ID","MTS","AMOUNT","RATE_DAILY","PERIOD"]
[425139682,1781548249000,-151.0,0.00019466,2]
[425139691,1781548249000,-151.28403746,0.00019576,2]
[425139689,1781548249000,-151.28403746,0.00019521,2]
[425139688,1781548249000,-600.0,0.00019516,7]
[425139690,1781548249000,-151.0,0.00019521,2]
[425139693,1781548249000,-151.28403746,0.00019631,2]
[425139683,1781548249000,-448097.829443,0.00019482,2]
[425139687,1781548249000,-1800.0,0.00019516,2]
[425139695,1781548249000,-151.2840376,0.00019686,2]
[425139694,1781548249000,-151.0,0.00019631,2]
[425139686,1781548249000,-8725.03700257,0.000195,2]
[425139705,1781548249000,-150.103,0.00019781,2]
[425139697,1781548249000,-8725.03700257,0.000197,2]
[425139696,1781548249000,-151.0,0.00019686,2]
[425139699,1781548249000,-150.0,0.00019781,2]
[425139704,1781548249000,-170.0,0.00019781,2]
[425139700,1781548249000,-200.0,0.00019781,2]
[425139698,1781548249000,-151.0,0.00019741,2]
[425139701,1781548249000,-220.0,0.00019781,2]
[425139651,1781548249000,-152.0,0.00019246,2]
[425139708,1781548249000,-200.0,0.00019794,2]
[425139707,1781548249000,-1112.1608346,0.00019794,2]
[425139706,1781548249000,-151.0,0.00019794,2]
[425139709,1781548249000,-181.08010149,0.00019794,2]
[425139702,1781548249000,-175.0,0.00019781,2]
[425139692,1781548249000,-151.0,0.00019576,2]
[425139703,1781548249000,-150.234,0.00019781,2]
[425139677,1781548249000,-151.28403746,0.00019411,2]
[425139675,1781548249000,-151.0,0.00019356,2]
[425139650,1781548249000,-151.0,0.00019246,2]
[425139654,1781548249000,-8725.03700257,0.000193,2]
[425139663,1781548249000,-299.99,0.00019339,7]
[425139665,1781548249000,-9999.99,0.00019339,2]
[425139658,1781548249000,-12015.61,0.00019339,2]
[425139659,1781548249000,-2887.32,0.00019339,2]
[425139657,1781548249000,-151.0,0.00019301,2]
[425139660,1781548249000,-6219.2,0.00019339,2]
[425139668,1781548249000,-3882.23,0.00019339,2]
[425139667,1781548249000,-9999.99,0.00019339,2]
[425139664,1781548249000,-24999.99,0.00019339,2]
[425139662,1781548249000,-204368.41,0.00019339,2]
[425139649,1781548249000,-152.0,0.00019246,2]
[425139669,1781548249000,-499.99,0.00019339,2]
[425139666,1781548249000,-7229.41,0.00019339,2]
[425139673,1781548249000,-150.99,0.00019339,2]
[425139680,1781548249000,-249.0,0.00019452,2]
[425139671,1781548249000,-3754.27,0.00019339,2]
[425139672,1781548249000,-4999.99,0.00019339,2]
[425139676,1781548249000,-41063.8400276,0.00019408,2]
[425139678,1781548249000,-151.0,0.00019411,2]
[425139679,1781548249000,-249.0,0.00019447,2]
[425139670,1781548249000,-1199.07,0.00019339,2]
[425139661,1781548249000,-1583.39,0.00019339,2]
[425139681,1781548249000,-151.28403746,0.00019466,2]
[425139674,1781548249000,-151.28403746,0.00019356,2]
[425139740,1781548250000,-1112.1608346,0.00020342,2]
[425139746,1781548250000,-784.43422086,0.000206,2]
[425139733,1781548250000,-10999.64,0.0002,2]
[425139735,1781548250000,-256.0,0.0002,2]
[425139738,1781548250000,-784.43422086,0.000202,2]
[425139739,1781548250000,-151.0,0.00020342,2]
[425139741,1781548250000,-200.0,0.00020342,2]
[425139742,1781548250000,-187.78006524,0.00020342,2]
[425139751,1781548250000,-383.0,0.00020867,2]
[425139756,1781548250000,-1112.1608346,0.0002089,2]
[425139745,1781548250000,-784.43422086,0.000204,2]
[425139748,1781548250000,-784.43422086,0.000208,2]
[425139749,1781548250000,-317.56,0.000208,2]
[425139744,1781548250000,-564.3,0.00020381,2]
[425139747,1781548250000,-157.29309396,0.00020615,2]
[425139752,1781548250000,-1359.0,0.00020867,2]
[425139762,1781548250000,-121262.6259681,0.00020978,2]
[425139753,1781548250000,-1275.0,0.00020867,2]
[425139755,1781548250000,-151.0,0.0002089,2]
[425139737,1781548250000,-162.0,0.00020183,2]
[425139750,1781548250000,-250.0,0.00020821,2]
[425139736,1781548250000,-231.0,0.00020172,2]
[425139723,1781548250000,-795.0,0.0002,2]
[425139732,1781548250000,-1311.0,0.0002,2]
[425139717,1781548250000,-3689.0,0.0002,2]
[425139718,1781548250000,-1640.812696,0.0002,2]
[425139714,1781548250000,-609.21,0.00019968,2]
[425139710,1781548250000,-2080.17592889,0.00019794,2]
[425139713,1781548250000,-151.0,0.00019851,2]
[425139712,1781548250000,-2000.0,0.00019836,7]
[425139715,1781548250000,-1066.0,0.0002,2]
[425139711,1781548250000,-151.0,0.00019796,2]
[425139716,1781548250000,-1248.0,0.0002,2]
[425139720,1781548250000,-400.0,0.0002,2]
[425139721,1781548250000,-500.0,0.0002,2]
[425139722,1781548250000,-500.0,0.0002,2]
[425139719,1781548250000,-784.43422086,0.0002,2]
[425139725,1781548250000,-197.0,0.0002,2]
[425139727,1781548250000,-2069.0,0.0002,2]
[425139729,1781548250000,-208.0,0.0002,2]
[425139724,1781548250000,-247.0,0.0002,2]
[425139726,1781548250000,-187.0,0.0002,2]
[425139728,1781548250000,-2112.0,0.0002,2]
[425139730,1781548250000,-717.0,0.0002,2]
[425139731,1781548250000,-260.0,0.0002,2]
[425139734,1781548250000,-217.0,0.0002,2]
[425139757,1781548250000,-200.0,0.0002089,2]
[425139743,1781548250000,-2157.14243826,0.00020342,2]
[425139760,1781548250000,-3086.5593042,0.00020978,2]
[425139784,1781548250000,-200.0,0.00021438,2]
[425139788,1781548250000,-10999.64,0.00021673,2]
[425139785,1781548250000,-201.93286098,0.00021438,2]
[425139787,1781548250000,-869.3812221,0.000216,2]
[425139791,1781548250000,-179.0,0.00021893,2]
[425139789,1781548250000,-6078.0,0.00021761,2]
[425139786,1781548250000,-2319.72410669,0.00021438,2]
[425139792,1781548250000,-869.3812221,0.000219,2]
[425139793,1781548250000,-236.957885,0.000219,7]
[425139794,1781548250000,-5000.0,0.00021918,2]
[425139801,1781548250000,-151.0,0.00021986,2]
[425139802,1781548250000,-1112.1608346,0.00021986,2]
[425139796,1781548250000,-1465.0,0.00021918,2]
[425139799,1781548250000,-151.0,0.00021985,2]
[425139800,1781548250000,-721.12765534,0.00021985,2]
[425139797,1781548250000,-157.29309396,0.00021984,2]
[425139798,1781548250000,-599.60298507,0.00021985,2]
[425139804,1781548250000,-209.40437684,0.00021986,2]
[425139803,1781548250000,-200.0,0.00021986,2]
[425139805,1781548250000,-2405.55389863,0.00021986,2]
[425139754,1781548250000,-1228.0,0.00020867,2]
[425139790,1781548250000,-3558.0,0.00021761,2]
[425139783,1781548250000,-1112.1608346,0.00021438,2]
[425139795,1781548250000,-580.0,0.00021918,8]
[425139782,1781548250000,-151.0,0.00021438,2]
[425139781,1781548250000,-9162.5812016,0.0002141,2]
[425139759,1781548250000,-2236.95670847,0.0002089,2]
[425139758,1781548250000,-194.72792766,0.0002089,2]
[425139763,1781548250000,-1771.96474,0.00020978,2]
[425139769,1781548250000,-187.0,0.00021,2]
[425139766,1781548250000,-869.3812221,0.00021,2]
[425139761,1781548250000,-64636.3798703,0.00020978,2]
[425139772,1781548250000,-208.0,0.00021,2]
[425139770,1781548250000,-2069.0,0.00021,2]
[425139765,1781548250000,-1640.812696,0.00021,2]
[425139764,1781548250000,-3444.0,0.00021,2]
[425139771,1781548250000,-2112.0,0.00021,2]
[425139767,1781548250000,-247.0,0.00021,2]
[425139774,1781548250000,-260.0,0.00021,2]
[425139768,1781548250000,-197.0,0.00021,2]
[425139775,1781548250000,-1311.0,0.00021,2]
[425139779,1781548250000,-179.81,0.00021205,2]
[425139778,1781548250000,-869.3812221,0.000212,2]
[425139780,1781548250000,-869.3812221,0.000214,2]
[425139777,1781548250000,-256.0,0.00021,2]
[425139776,1781548250000,-217.0,0.00021,2]
[425139773,1781548250000,-717.0,0.00021,2]
[425139813,1781548251000,-2112.0,0.00022,2]
[425139806,1781548251000,-2684.0,0.00022,2]
[425139808,1781548251000,-450.0,0.00022,2]
[425139812,1781548251000,-2069.0,0.00022,2]
[425139811,1781548251000,-187.0,0.00022,2]
[425139810,1781548251000,-197.0,0.00022,2]
[425139807,1781548251000,-1640.812696,0.00022,2]
[425139809,1781548251000,-247.0,0.00022,2]
[425139961,1781548252000,-301.136886,0.00024658,2]
[425139963,1781548252000,-301.136886,0.00024658,2]
[425139956,1781548252000,-301.136886,0.00024658,2]
[425139964,1781548252000,-301.136886,0.00024658,2]
[425139954,1781548252000,-301.136886,0.00024658,2]
[425139946,1781548252000,-301.136886,0.00024658,2]
[425139948,1781548252000,-301.136886,0.00024658,2]
[425139945,1781548252000,-163.400828,0.00024658,2]
[425139951,1781548252000,-301.136886,0.00024658,2]
[425139949,1781548252000,-301.136886,0.00024658,2]
[425139947,1781548252000,-301.136886,0.00024658,2]
[425139955,1781548252000,-301.136886,0.00024658,2]
[425139958,1781548252000,-301.136886,0.00024658,2]
[425139959,1781548252000,-301.136886,0.00024658,2]
[425139957,1781548252000,-301.136886,0.00024658,2]
[425139962,1781548252000,-301.136886,0.00024658,2]
[425139968,1781548252000,-621.78829552,0.00024724,2]
[425139969,1781548252000,-151.0,0.00024724,2]
[425139966,1781548252000,-814.96,0.00024658,2]
[425139967,1781548252000,-157.29309396,0.00024722,2]
[425139970,1781548252000,-747.80937859,0.00024724,2]
[425139972,1781548252000,-200.0,0.00024726,2]
[425139965,1781548252000,-301.136882,0.00024658,2]
[425139971,1781548252000,-1112.1608346,0.00024726,2]
[425139973,1781548252000,-2884.75459676,0.00024726,2]
[425139950,1781548252000,-301.136886,0.00024658,2]
[425139960,1781548252000,-301.136886,0.00024658,2]
[425139944,1781548252000,-163.400824,0.00024658,2]
[425139918,1781548252000,-298.5,0.00024447,2]
[425139953,1781548252000,-301.136886,0.00024658,2]
[425139974,1781548252000,-614.7,0.00024735,7]
[425139927,1781548252000,-163.400824,0.00024658,2]
[425139920,1781548252000,-151.0,0.00024658,2]
[425139921,1781548252000,-151.0,0.00024658,2]
[425139928,1781548252000,-163.400824,0.00024658,2]
[425139919,1781548252000,-19887.1,0.00024511,2]
[425139926,1781548252000,-163.400824,0.00024658,2]
[425139925,1781548252000,-151.0,0.00024658,2]
[425139924,1781548252000,-1000.0,0.00024658,2]
[425139922,1781548252000,-151.0,0.00024658,2]
[425139923,1781548252000,-292.872257,0.00024658,2]
[425139930,1781548252000,-163.400824,0.00024658,2]
[425139943,1781548252000,-163.400824,0.00024658,2]
[425139940,1781548252000,-163.400824,0.00024658,2]
[425139931,1781548252000,-163.400824,0.00024658,2]
[425139932,1781548252000,-163.400824,0.00024658,2]
[425139933,1781548252000,-163.400824,0.00024658,2]
[425139935,1781548252000,-163.400824,0.00024658,2]
[425139934,1781548252000,-163.400824,0.00024658,2]
[425139936,1781548252000,-163.400824,0.00024658,2]
[425139938,1781548252000,-163.400824,0.00024658,2]
[425139937,1781548252000,-163.400824,0.00024658,2]
[425139939,1781548252000,-163.400824,0.00024658,2]
[425139941,1781548252000,-163.400824,0.00024658,2]
[425139942,1781548252000,-163.400824,0.00024658,2]
[425139952,1781548252000,-301.136886,0.00024658,2]
[425139929,1781548252000,-163.400824,0.00024658,2]
[425139976,1781548252000,-3558.0,0.00024761,2]
[425139980,1781548252000,-151.11,0.0002498,2]
[425139985,1781548252000,-2112.21865929,0.00025,2]
[425140011,1781548252000,-3445.78,0.00025786,2]
[425140009,1781548252000,-150.0,0.00025781,2]
[425140006,1781548252000,-179.81,0.00025644,2]
[425140008,1781548252000,-573.4,0.00025742,2]
[425140013,1781548252000,-152.0,0.00025997,3]
[425140014,1781548252000,-550.0,0.00026,2]
[425140015,1781548252000,-168.76,0.00026027,7]
[425140019,1781548252000,-157.29309396,0.00026091,2]
[425140017,1781548252000,-151.89,0.00026027,10]
[425140018,1781548252000,-448.0,0.00026052,5]
[425140016,1781548252000,-264.32,0.00026027,7]
[425140023,1781548252000,-317.56,0.000263,7]
[425140020,1781548252000,-5528.0,0.000261,3]
[425140021,1781548252000,-205.15823594,0.00026118,4]
[425140022,1781548252000,-564.3,0.00026296,2]
[425140024,1781548252000,-185.13,0.00026564,2]
[425140026,1781548252000,-151.49,0.00026565,2]
[425140033,1781548252000,-151.0,0.00026592,2]
[425139986,1781548252000,-209.59966885,0.00025,2]
[425140027,1781548252000,-396.16,0.00026571,2]
[425140031,1781548252000,-231.21,0.00026591,2]
[425140034,1781548252000,-151.0,0.00026592,2]
[425140029,1781548252000,-151.0,0.00026591,2]
[425140025,1781548252000,-644.14,0.00026564,2]
[425140035,1781548252000,-151.0,0.00026592,2]
[425140028,1781548252000,-151.0,0.00026591,2]
[425140030,1781548252000,-151.0,0.00026591,2]
[425140012,1781548252000,-207.45,0.0002584,2]
[425140001,1781548252000,-272.0,0.00025,2]
[425140032,1781548252000,-151.0,0.00026591,2]
[425140007,1781548252000,-396.18,0.0002574,2]
[425139979,1781548252000,-6354.93746446,0.00024977,7]
[425139984,1781548252000,-2088.44190249,0.00025,2]
[425139982,1781548252000,-205.0,0.00025,2]
[425139977,1781548252000,-2000.0,0.00024918,7]
[425139975,1781548252000,-6078.0,0.00024761,2]
[425139981,1781548252000,-263.80448742,0.00025,2]
[425139983,1781548252000,-187.0,0.00025,2]
[425139998,1781548252000,-222.0,0.00025,2]
[425139978,1781548252000,-448.0,0.00024958,5]
[425139999,1781548252000,-222.0,0.00025,2]
[425139987,1781548252000,-725.57139558,0.00025,2]
[425139994,1781548252000,-222.0,0.00025,2]
[425139988,1781548252000,-272.64031093,0.00025,2]
[425139989,1781548252000,-1320.73415387,0.00025,2]
[425140010,1781548252000,-2876.62,0.00025786,2]
[425140004,1781548252000,-1112.1608346,0.00025274,2]
[425139991,1781548252000,-222.0,0.00025,2]
[425140003,1781548252000,-49716.0,0.000251,2]
[425140000,1781548252000,-222.0,0.00025,2]
[425140002,1781548252000,-10999.64,0.0002502,7]
[425139993,1781548252000,-222.0,0.00025,2]
[425139990,1781548252000,-228.0,0.00025,2]
[425139996,1781548252000,-222.0,0.00025,2]
[425139992,1781548252000,-222.0,0.00025,2]
[425139997,1781548252000,-222.0,0.00025,2]
[425139995,1781548252000,-222.0,0.00025,2]
[425140005,1781548252000,-2991.49051684,0.00025274,2]
[425140051,1781548253000,-151.0,0.00026592,2]
[425140055,1781548253000,-151.3,0.00026592,2]
[425140071,1781548253000,-493333.82093598,0.0002732,2]
[425140062,1781548253000,-1228.0,0.00026867,2]
[425140072,1781548253000,-358.0,0.00027366,10]
[425140064,1781548253000,-501.0,0.00027137,2]
[425140063,1781548253000,-5528.0,0.00027,5]
[425140061,1781548253000,-1359.0,0.00026867,2]
[425140080,1781548253000,-500.0,0.00027397,15]
[425140069,1781548253000,-154.89238072,0.00027205,7]
[425140066,1781548253000,-152.07241364,0.00027186,7]
[425140065,1781548253000,-151.0,0.00027178,2]
[425140068,1781548253000,-174.64529875,0.00027189,7]
[425140070,1781548253000,-182.92866877,0.00027205,2]
[425140073,1781548253000,-396.18,0.00027386,2]
[425140075,1781548253000,-573.4,0.00027386,2]
[425140076,1781548253000,-426.88617954,0.00027397,7]
[425140052,1781548253000,-151.0,0.00026592,2]
[425140067,1781548253000,-163.59558738,0.00027186,7]
[425140053,1781548253000,-151.0,0.00026592,2]
[425140042,1781548253000,-151.0,0.00026592,2]
[425140056,1781548253000,-151.0,0.00026592,2]
[425140074,1781548253000,-396.18,0.00027386,2]
[425140037,1781548253000,-151.0,0.00026592,2]
[425140047,1781548253000,-151.0,0.00026592,2]
[425140036,1781548253000,-151.32,0.00026592,2]
[425140041,1781548253000,-151.0,0.00026592,2]
[425140040,1781548253000,-151.0,0.00026592,2]
[425140039,1781548253000,-151.0,0.00026592,2]
[425140038,1781548253000,-152.72,0.00026592,2]
[425140043,1781548253000,-151.0,0.00026592,2]
[425140045,1781548253000,-151.0,0.00026592,2]
[425140046,1781548253000,-152.08,0.00026592,2]
[425140044,1781548253000,-151.0,0.00026592,2]
[425140049,1781548253000,-151.0,0.00026592,2]
[425140048,1781548253000,-151.0,0.00026592,2]
[425140050,1781548253000,-151.0,0.00026592,2]
[425140054,1781548253000,-151.0,0.00026592,2]
[425140058,1781548253000,-151.0,0.00026592,2]
[425140060,1781548253000,-383.0,0.00026867,2]
[425140059,1781548253000,-10999.64,0.00026694,7]
[425140057,1781548253000,-151.0,0.00026592,2]
[425140084,1781548253000,-151.0,0.00027397,2]
[425140113,1781548253000,-176.03185233,0.00027397,3]
[425140083,1781548253000,-151.0,0.00027397,2]
[425140105,1781548253000,-151.0,0.00027397,2]
[425140104,1781548253000,-151.0,0.00027397,2]
[425140110,1781548253000,-814.96,0.00027397,2]
[425140109,1781548253000,-238.014867,0.00027397,2]
[425140111,1781548253000,-300.0,0.00027397,2]
[425140107,1781548253000,-151.0,0.00027397,2]
[425140106,1781548253000,-151.0,0.00027397,2]
[425140108,1781548253000,-151.0,0.00027397,2]
[425140101,1781548253000,-151.0,0.00027397,2]
[425140115,1781548253000,-277.49517084,0.00027397,7]
[425140114,1781548253000,-333.71339152,0.00027397,7]
[425140077,1781548253000,-150.0,0.00027397,2]
[425140118,1781548253000,-5218.62,0.000274,2]
[425140120,1781548253000,-5218.62,0.000274,2]
[425140117,1781548253000,-602.64,0.000274,7]
[425140119,1781548253000,-5218.62,0.000274,2]
[425140121,1781548253000,-5218.62,0.000274,2]
[425140122,1781548253000,-5218.62,0.000274,2]
[425140116,1781548253000,-308.05,0.000274,7]
[425140097,1781548253000,-151.0,0.00027397,2]
[425140112,1781548253000,-1030.15,0.00027397,30]
[425140103,1781548253000,-151.0,0.00027397,2]
[425140100,1781548253000,-151.0,0.00027397,2]
[425140081,1781548253000,-429.72411305,0.00027397,2]
[425140079,1781548253000,-1500.0,0.00027397,2]
[425140078,1781548253000,-155.574181,0.00027397,2]
[425140085,1781548253000,-151.0,0.00027397,2]
[425140086,1781548253000,-151.0,0.00027397,2]
[425140088,1781548253000,-151.0,0.00027397,2]
[425140087,1781548253000,-151.0,0.00027397,2]
[425140089,1781548253000,-151.0,0.00027397,2]
[425140082,1781548253000,-151.0,0.00027397,2]
[425140092,1781548253000,-151.0,0.00027397,2]
[425140091,1781548253000,-151.0,0.00027397,2]
[425140093,1781548253000,-151.0,0.00027397,2]
[425140096,1781548253000,-155.147338,0.00027397,2]
[425140095,1781548253000,-151.0,0.00027397,2]
[425140094,1781548253000,-151.0,0.00027397,2]
[425140098,1781548253000,-151.0,0.00027397,2]
[425140102,1781548253000,-151.0,0.00027397,2]
[425140090,1781548253000,-151.0,0.00027397,2]
[425140099,1781548253000,-151.0,0.00027397,2]
[425140143,1781548254000,-151.0,0.00027414,2]
[425140139,1781548254000,-151.0,0.00027414,2]
[425140141,1781548254000,-151.0,0.00027414,2]
[425140145,1781548254000,-151.0,0.00027414,2]
[425140147,1781548254000,-151.0,0.00027414,2]
[425140153,1781548254000,-151.0,0.00027414,2]
[425140150,1781548254000,-151.0,0.00027414,2]
[425140151,1781548254000,-151.0,0.00027414,2]
[425140152,1781548254000,-151.0,0.00027414,2]
[425140154,1781548254000,-151.0,0.00027414,2]
[425140140,1781548254000,-151.0,0.00027414,2]
[425140149,1781548254000,-151.0,0.00027414,2]
[425140137,1781548254000,-151.0,0.00027414,2]
[425140126,1781548254000,-151.0,0.00027406,2]
[425140138,1781548254000,-151.0,0.00027414,2]
[425140134,1781548254000,-151.0,0.00027413,2]
[425140135,1781548254000,-151.0,0.00027414,2]
[425140132,1781548254000,-151.0,0.00027409,2]
[425140131,1781548254000,-151.0,0.00027409,2]
[425140133,1781548254000,-151.0,0.00027409,2]
[425140130,1781548254000,-151.36,0.00027406,2]
[425140128,1781548254000,-151.0,0.00027406,2]
[425140129,1781548254000,-151.72,0.00027406,2]
[425140125,1781548254000,-151.0,0.00027406,2]
[425140127,1781548254000,-151.0,0.00027406,2]
[425140124,1781548254000,-151.0,0.00027406,2]
[425140123,1781548254000,-267.28,0.00027406,2]
[425140136,1781548254000,-151.0,0.00027414,2]
[425140155,1781548254000,-151.0,0.00027414,2]
[425140156,1781548254000,-151.0,0.00027414,2]
[425140157,1781548254000,-151.15,0.00027414,2]
[425140158,1781548254000,-151.0,0.00027414,2]
[425140185,1781548254000,-216.09656886,0.00028,10]
[425140187,1781548254000,-150.0,0.00028082,2]
[425140186,1781548254000,-13787.86842671,0.00028013,2]
[425140184,1781548254000,-600.0,0.00028,2]
[425140183,1781548254000,-1684.0,0.00027918,2]
[425140181,1781548254000,-241.32252105,0.00027886,2]
[425140180,1781548254000,-602.64,0.000278,7]
[425140178,1781548254000,-3558.0,0.00027761,2]
[425140179,1781548254000,-447.57747894,0.00027789,2]
[425140177,1781548254000,-6078.0,0.00027761,2]
[425140176,1781548254000,-249.82,0.000277,4]
[425140175,1781548254000,-191.7,0.00027671,30]
[425140174,1781548254000,-166.72,0.00027671,30]
[425140182,1781548254000,-501.0,0.00027914,2]
[425140172,1781548254000,-166.73,0.00027671,30]
[425140161,1781548254000,-151.0,0.00027414,2]
[425140171,1781548254000,-421.0,0.00027632,2]
[425140160,1781548254000,-151.0,0.00027414,2]
[425140159,1781548254000,-151.0,0.00027414,2]
[425140162,1781548254000,-571.813968,0.00027435,2]
[425140168,1781548254000,-614.7,0.00027469,7]
[425140163,1781548254000,-914.5963844,0.00027459,7]
[425140166,1781548254000,-151.0,0.00027463,2]
[425140164,1781548254000,-157.29309396,0.0002746,2]
[425140165,1781548254000,-644.79446245,0.00027463,2]
[425140170,1781548254000,-447.58747894,0.00027593,2]
[425140173,1781548254000,-166.73,0.00027671,30]
[425140169,1781548254000,-500.0,0.000275,7]
[425140167,1781548254000,-775.4783256,0.00027463,2]
[425140208,1781548255000,-151.0,0.00028231,2]
[425140217,1781548255000,-151.0,0.00028236,2]
[425140212,1781548255000,-151.0,0.00028236,2]
[425140214,1781548255000,-151.0,0.00028236,2]
[425140216,1781548255000,-151.0,0.00028236,2]
[425140215,1781548255000,-151.0,0.00028236,2]
[425140220,1781548255000,-151.0,0.00028236,2]
[425140221,1781548255000,-195.33,0.00028236,2]
[425140218,1781548255000,-151.0,0.00028236,2]
[425140226,1781548255000,-151.0,0.00028236,2]
[425140224,1781548255000,-151.0,0.00028236,2]
[425140223,1781548255000,-151.0,0.00028236,2]
[425140219,1781548255000,-151.0,0.00028236,2]
[425140225,1781548255000,-151.0,0.00028236,2]
[425140227,1781548255000,-151.0,0.00028236,2]
[425140235,1781548255000,-10999.64,0.00028367,7]
[425140230,1781548255000,-151.0,0.00028236,2]
[425140228,1781548255000,-151.0,0.00028236,2]
[425140213,1781548255000,-151.0,0.00028236,2]
[425140222,1781548255000,-151.0,0.00028236,2]
[425140211,1781548255000,-151.0,0.00028235,2]
[425140193,1781548255000,-317.56,0.000282,7]
[425140204,1781548255000,-151.0,0.00028228,2]
[425140188,1781548255000,-25000.0,0.00028182,7]
[425140190,1781548255000,-25000.0,0.00028195,7]
[425140189,1781548255000,-25000.0,0.0002819,7]
[425140194,1781548255000,-25000.0,0.00028204,7]
[425140192,1781548255000,-308.05,0.000282,7]
[425140195,1781548255000,-482.28,0.00028208,2]
[425140191,1781548255000,-25000.0,0.00028199,7]
[425140196,1781548255000,-25000.0,0.00028213,7]
[425140198,1781548255000,-573.42,0.00028213,2]
[425140206,1781548255000,-151.0,0.00028231,2]
[425140199,1781548255000,-151.0,0.00028228,2]
[425140197,1781548255000,-644.1,0.00028213,2]
[425140232,1781548255000,-564.3,0.00028267,2]
[425140200,1781548255000,-151.0,0.00028228,2]
[425140203,1781548255000,-151.0,0.00028228,2]
[425140201,1781548255000,-151.0,0.00028228,2]
[425140209,1781548255000,-151.0,0.00028231,2]
[425140205,1781548255000,-151.0,0.00028228,2]
[425140210,1781548255000,-151.0,0.00028231,2]
[425140207,1781548255000,-241.65,0.00028231,2]
[425140202,1781548255000,-151.0,0.00028228,2]
[425140231,1781548255000,-151.0,0.00028236,2]
[425140265,1781548255000,-466.0,0.00028493,2]
[425140233,1781548255000,-448.09877512,0.00028278,2]
[425140259,1781548255000,-466.0,0.00028493,2]
[425140258,1781548255000,-466.0,0.00028493,2]
[425140263,1781548255000,-466.0,0.00028493,2]
[425140262,1781548255000,-466.0,0.00028493,2]
[425140261,1781548255000,-466.0,0.00028493,2]
[425140264,1781548255000,-466.0,0.00028493,2]
[425140268,1781548255000,-466.0,0.00028493,2]
[425140269,1781548255000,-466.0,0.00028493,2]
[425140267,1781548255000,-466.0,0.00028493,2]
[425140266,1781548255000,-466.0,0.00028493,2]
[425140270,1781548255000,-466.0,0.00028493,2]
[425140272,1781548255000,-466.0,0.00028493,2]
[425140271,1781548255000,-466.0,0.00028493,2]
[425140273,1781548255000,-468.48877466,0.00028493,2]
[425140276,1781548255000,-500.0,0.00028493,2]
[425140274,1781548255000,-150.0,0.00028493,2]
[425140278,1781548255000,-205.12181795,0.00028493,2]
[425140275,1781548255000,-150.0,0.00028493,2]
[425140229,1781548255000,-151.0,0.00028236,2]
[425140260,1781548255000,-466.0,0.00028493,2]
[425140257,1781548255000,-466.0,0.00028493,2]
[425140277,1781548255000,-150.0,0.00028493,2]
[425140254,1781548255000,-466.0,0.00028493,2]
[425140256,1781548255000,-466.0,0.00028493,2]
[425140234,1781548255000,-602.64,0.000283,7]
[425140236,1781548255000,-304.14482728,0.00028472,7]
[425140239,1781548255000,-448.09877512,0.00028474,2]
[425140237,1781548255000,-327.19117477,0.00028472,7]